bitfinex/quotes_BTCUSD_20241130
["timestamp","ask_amount","ask_price","bid_price","bid_amount"]
[1732926007903,0.39646799,97328.0,97327.0,0.0008658]
[1732926009495,0.62648228,97328.0,97327.0,0.0008658]
[1732926009736,0.63147915,97328.0,97327.0,0.0008658]
[1732926009959,0.40146799,97328.0,97327.0,0.0008658]
[1732926010397,0.40246799,97328.0,97327.0,0.0008658]
[1732926012635,0.58635865,97328.0,97327.0,0.0008658]
[1732926013617,0.60673444,97328.0,97327.0,0.0008658]
[1732926013855,0.42284378,97328.0,97327.0,0.0008658]
[1732926014298,0.60673444,97328.0,97327.0,0.0008658]
[1732926014545,0.42284378,97328.0,97327.0,0.0008658]
[1732926014796,0.60673444,97328.0,97327.0,0.0008658]
[1732926015274,0.42284378,97328.0,97327.0,0.0008658]
[1732926016697,0.56069633,97328.0,97327.0,0.0008658]
[1732926016935,0.42284378,97328.0,97327.0,0.0008658]
[1732926017148,0.26546799,97328.0,97327.0,0.0008658]
[1732926017592,0.26546799,97328.0,97327.0,0.02008263]
[1732926017813,0.26546799,97328.0,97327.0,0.05082786]
[1732926018060,0.26446799,97328.0,97327.0,0.05082786]
[1732926018305,0.26546799,97328.0,97327.0,0.05082786]
[1732926018790,0.11446799,97328.0,97327.0,0.05082786]
[1732926019025,0.10946799,97328.0,97327.0,0.08925975]
[1732926019243,0.10946799,97328.0,97327.0,0.09025975]
[1732926019484,0.10946799,97328.0,97327.0,0.08925975]
[1732926020027,0.10946799,97328.0,97327.0,0.09125975]
[1732926020277,0.10946799,97328.0,97327.0,0.09225975]
[1732926020491,0.10946799,97328.0,97327.0,0.0078658]
[1732926020721,0.00672299,97328.0,97327.0,0.19210475]
[1732926020935,0.102744,97329.0,97327.0,0.27020475]
[1732926021159,0.0017316,97336.0,97328.0,0.19123895]
[1732926021399,0.0017316,97336.0,97332.0,0.0781]
[1732926021621,0.0017316,97336.0,97331.0,0.0465]
[1732926021622,0.0017316,97336.0,97335.0,0.102737]
[1732926021842,0.0017316,97336.0,97335.0,0.26933895]
[1732926022502,0.0017316,97336.0,97335.0,0.37207595]
[1732926023421,0.0017316,97336.0,97335.0,0.27433895]
[1732926023645,0.0017316,97336.0,97335.0,0.27033895]
[1732926023927,0.0017316,97336.0,97335.0,0.38007595]
[1732926024145,0.0017316,97336.0,97335.0,0.37907595]
[1732926024387,0.0017316,97336.0,97335.0,0.38307595]
[1732926025565,0.0017316,97336.0,97335.0,0.43097595]
[1732926026028,0.0017308,97355.0,97335.0,0.43097595]
[1732926026029,0.0017308,97355.0,97352.0,0.10272]
[1732926026288,0.0017308,97355.0,97352.0,0.42285895]
[1732926027435,0.00232675,97353.0,97352.0,0.42285895]
[1732926027705,0.00232675,97353.0,97352.0,0.42785895]
[1732926028369,0.00232675,97353.0,97352.0,0.42285895]
[1732926029259,0.00232675,97353.0,97352.0,0.42985895]
[1732926029698,0.00232675,97353.0,97352.0,0.44785895]
[1732926030379,0.00232675,97353.0,97352.0,0.45785895]
[1732926030592,0.00232675,97353.0,97352.0,0.60785895]
[1732926030821,0.00232675,97353.0,97352.0,0.61893836]
[1732926031264,0.0017308,97355.0,97354.0,0.112717]
[1732926031556,0.0017308,97355.0,97354.0,0.38677361]
[1732926031557,0.00187157,97355.0,97354.0,0.38677361]
[1732926031779,0.00187157,97355.0,97354.0,0.38495595]
[1732926032895,0.00187157,97355.0,97354.0,0.39395595]
[1732926033117,0.00187157,97355.0,97354.0,0.40295595]
[1732926034358,0.00187157,97355.0,97354.0,0.62385595]
[1732926035452,0.00187157,97355.0,97354.0,0.60085595]
[1732926037450,0.00187157,97355.0,97354.0,0.62385595]
[1732926042492,0.0017304,97364.0,97363.0,0.102708]
[1732926042702,0.00183479,97364.0,97363.0,0.37676448]
[1732926042905,0.00183479,97364.0,97363.0,0.37494695]
[1732926043859,0.00183479,97364.0,97363.0,0.38094695]
[1732926044740,0.00183479,97364.0,97363.0,0.38994695]
[1732926046310,0.102692,97378.0,97363.0,0.28723895]
[1732926046528,0.102692,97378.0,97374.0,0.10284521]
[1732926046700,0.205378,97381.0,97374.0,0.20554021]
[1732926047001,0.004723,97377.0,97375.0,0.08787403]
[1732926047207,0.205378,97381.0,97374.0,0.20554021]
[1732926047208,0.102691,97380.0,97376.0,0.19071924]
[1732926047432,0.205378,97381.0,97377.0,0.08787403]
[1732926047636,0.205378,97381.0,97374.0,0.102695]
[1732926047637,0.102692,97379.0,97378.0,0.19071924]
[1732926048266,0.0462,97383.0,97378.0,0.19071924]
[1732926048513,0.00472312,97379.0,97378.0,0.10284521]
[1732926048739,0.102691,97379.0,97378.0,0.19090002]
[1732926048966,0.00472312,97379.0,97378.0,0.19090002]
[1732926049187,0.00472312,97379.0,97378.0,0.19290002]
[1732926049415,0.102691,97379.0,97378.0,0.19590002]
[1732926049632,0.10741412,97379.0,97378.0,0.19590002]
[1732926052227,0.10827972,97379.0,97378.0,0.19590002]
[1732926052438,0.04405119,97379.0,97378.0,0.19590002]
[1732926052648,0.0095538,97379.0,97378.0,0.19590002]
[1732926052857,0.1122448,97379.0,97378.0,0.19590002]
[1732926053317,0.0095538,97379.0,97378.0,0.29859202]
[1732926053553,0.0008656,97379.0,97378.0,0.29859202]
[1732926053767,0.1503566,97379.0,97378.0,0.19590002]
[1732926054022,0.1590448,97379.0,97378.0,0.19390002]
[1732926054230,0.1590448,97379.0,97378.0,0.19090002]
[1732926054504,0.0563538,97379.0,97378.0,0.19590002]
[1732926054733,0.1590448,97379.0,97378.0,0.19290002]
[1732926054952,0.0563538,97379.0,97378.0,0.19090002]
[1732926055160,0.0563538,97379.0,97378.0,0.20390002]
[1732926055396,0.0563538,97379.0,97378.0,0.19590002]
[1732926055835,0.0095538,97379.0,97378.0,0.19990002]
[1732926056043,0.0095538,97379.0,97378.0,0.20590002]
[1732926056689,0.0095538,97379.0,97378.0,0.20634935]
[1732926056921,0.0008656,97379.0,97378.0,0.20634935]
[1732926057376,0.00954549,97379.0,97378.0,0.20634935]
[1732926058659,0.00954549,97379.0,97378.0,0.30904135]
[1732926059102,0.0008656,97379.0,97378.0,0.20634935]
[1732926059325,0.0008656,97379.0,97378.0,0.30904135]
[1732926059573,0.0008656,97379.0,97378.0,0.20634935]
[1732926059802,0.00954549,97379.0,97378.0,0.30904135]
[1732926060052,0.102689,97382.0,97378.0,0.30909666]
[1732926060261,0.00867989,97379.0,97378.0,0.17560137]
[1732926060479,0.0017306,97386.0,97379.0,0.03850411]
[1732926060659,0.0017306,97386.0,97378.0,0.16790501]
[1732926060660,0.00867989,97379.0,97378.0,0.117692]
[1732926060783,0.0017306,97386.0,97382.0,0.102687]
[1732926061002,0.0017306,97386.0,97378.0,0.20042534]
[1732926061003,0.102686,97384.0,97383.0,0.19142534]
[1732926061451,0.1113664,97384.0,97383.0,0.19142534]
[1732926061674,0.0086804,97384.0,97383.0,0.29411234]
[1732926061905,0.0017306,97386.0,97385.0,0.102685]
[1732926062161,0.0017306,97386.0,97385.0,0.30548233]
[1732926062403,0.0017306,97386.0,97385.0,0.40651034]
[1732926062610,3.1e-05,97404.0,97403.0,0.102666]
[1732926062820,3.1e-05,97404.0,97403.0,0.29409134]
[1732926063055,3.1e-05,97404.0,97403.0,0.42199134]
[1732926063272,3.1e-05,97404.0,97403.0,0.43199134]
[1732926063716,0.00021039,97404.0,97403.0,0.43199134]
[1732926064563,0.00021039,97404.0,97403.0,0.43799134]
[1732926065032,0.00021039,97404.0,97403.0,0.44699134]
[1732926065259,0.00021039,97404.0,97403.0,0.35841121]
[1732926065474,0.00021039,97404.0,97403.0,0.44669636]
[1732926065681,0.00021039,97404.0,97403.0,0.4578656]
[1732926066927,0.10287539,97404.0,97403.0,0.20613036]
[1732926067382,0.11022389,97404.0,97403.0,0.20502324]
[1732926068265,0.11022389,97404.0,97403.0,0.10328515]
[1732926068491,0.23582389,97404.0,97403.0,0.10328515]
[1732926069586,0.23582389,97404.0,97403.0,0.09728515]
[1732926069874,0.23582389,97404.0,97403.0,0.09828515]
[1732926070111,0.23582389,97404.0,97403.0,0.01]
[1732926070313,0.23582389,97404.0,97403.0,0.009]
[1732926070753,0.23582389,97404.0,97403.0,0.001]
[1732926071118,0.23582389,97404.0,97403.0,0.002]
[1732926071339,0.23582389,97404.0,97403.0,0.001]
[1732926071555,0.23582389,97404.0,97403.0,0.002]
[1732926075546,0.23582389,97404.0,97403.0,0.001]
[1732926075761,0.13315889,97404.0,97386.0,0.00181731]
[1732926075999,0.102682,97388.0,97387.0,0.10284521]
[1732926076232,0.205355,97393.0,97387.0,0.10284521]
[1732926076453,0.11001447,97388.0,97387.0,0.10284521]
[1732926076661,0.102682,97388.0,97387.0,0.10284521]
[1732926076868,0.11001397,97388.0,97387.0,0.10284521]
[1732926077492,0.00733197,97388.0,97387.0,0.10284521]
[1732926077701,0.00733197,97388.0,97387.0,0.10984521]
[1732926077702,0.11001397,97388.0,97387.0,0.10984521]
[1732926077909,0.102682,97388.0,97387.0,0.10284521]
[1732926078132,0.11001322,97388.0,97387.0,0.11184521]
[1732926079027,0.18821322,97388.0,97387.0,0.11784521]
[1732926080138,0.11001322,97388.0,97387.0,0.11784521]
[1732926082367,0.11001322,97388.0,97387.0,0.08784521]
[1732926087698,0.00733122,97388.0,97387.0,0.16674521]
[1732926087922,0.11001322,97388.0,97387.0,0.16674521]
[1732926088148,0.102682,97388.0,97387.0,0.16674521]
[1732926088397,0.11036836,97388.0,97387.0,0.16674521]
[1732926088662,0.00768636,97388.0,97387.0,0.16674521]
[1732926089169,0.01,97418.0,97387.0,0.16674521]
[1732926089170,0.205334,97402.0,97388.0,0.205364]
[1732926089433,0.00768205,97388.0,97387.0,0.1983142]
[1732926089679,0.0008656,97403.0,97390.0,0.102679]
[1732926089680,0.102674,97396.0,97390.0,0.102679]
[1732926089922,0.102673,97397.0,97388.0,0.30820821]
[1732926090192,0.00768366,97395.0,97389.0,0.205362]
[1732926090439,0.102674,97396.0,97391.0,0.102678]
[1732926090653,0.205336,97401.0,97389.0,0.205362]
[1732926090902,0.205336,97401.0,97388.0,0.10484521]
[1732926090903,0.00767822,97395.0,97392.0,0.102677]
[1732926091122,0.102672,97397.0,97392.0,0.102677]
[1732926091360,0.00767799,97394.0,97393.0,0.102676]
[1732926091620,0.0008656,97403.0,97393.0,0.102676]
[1732926091621,0.0008656,97403.0,97401.0,0.102667]
[1732926091857,0.0008656,97403.0,97390.0,0.211359]
[1732926091858,0.0008656,97403.0,97402.0,0.10284521]
[1732926092337,0.1035316,97403.0,97402.0,0.10284521]
[1732926092576,0.0008656,97403.0,97402.0,0.10284521]
[1732926093031,0.0008656,97403.0,97402.0,0.20551221]
[1732926093033,0.0008656,97403.0,97402.0,0.28441221]
[1732926093736,0.0008656,97403.0,97402.0,0.29941221]
[1732926093968,0.00060837,97403.0,97402.0,0.29041221]
[1732926094471,0.00060837,97403.0,97402.0,0.29941221]
[1732926094960,0.00060837,97403.0,97402.0,0.29341221]
[1732926095443,0.00060837,97403.0,97402.0,0.29941221]
[1732926098606,0.00060837,97403.0,97402.0,0.22051221]
[1732926103742,0.00060837,97403.0,97402.0,0.34801221]
[1732926103986,0.00021039,97404.0,97403.0,0.377066]
[1732926104202,0.00133322,97410.0,97409.0,0.416459]
[1732926104429,0.00133322,97410.0,97409.0,0.51930421]
[1732926105189,0.0017312,97423.0,97409.0,0.51930421]
[1732926105190,0.0017312,97423.0,97422.0,0.266446]
[1732926105445,0.0017312,97423.0,97422.0,0.36929121]
[1732926105687,0.0002,97449.0,97433.0,0.112634]
[1732926105921,0.0002,97449.0,97433.0,0.32169532]
[1732926106132,0.0002,97449.0,97433.0,0.31987921]
[1732926107111,0.00104512,97434.0,97433.0,0.31987921]
[1732926107359,0.00104512,97434.0,97433.0,0.32887921]
[1732926108277,0.00104512,97434.0,97433.0,0.33587921]
[1732926113267,0.00104512,97434.0,97433.0,0.34673919]
[1732926113491,0.10367812,97434.0,97433.0,0.11884521]
[1732926113945,0.0076985,97434.0,97433.0,0.11884521]
[1732926114165,0.1103315,97434.0,97433.0,0.11884521]
[1732926119410,0.2342315,97434.0,97433.0,0.016]
[1732926120100,0.0076985,97434.0,97433.0,0.10284521]
[1732926120321,0.1103315,97434.0,97433.0,0.11084521]
[1732926120624,0.10367812,97434.0,97433.0,0.11584521]
[1732926120852,0.11054203,97434.0,97433.0,0.11084521]
[1732926121273,0.11054203,97434.0,97433.0,0.11584521]
[1732926121518,0.11054203,97434.0,97433.0,0.10784521]
[1732926121997,0.11054203,97434.0,97433.0,0.11584521]
[1732926123473,0.00790903,97434.0,97433.0,0.21847921]
[1732926123871,0.205252,97441.0,97433.0,0.21847921]
[1732926124118,0.102632,97436.0,97434.0,0.10284521]
[1732926124386,0.0475,97443.0,97434.0,0.10284521]
[1732926124387,0.00566027,97440.0,97434.0,0.10284521]
[1732926124631,0.102631,97437.0,97434.0,0.10284521]
[1732926124880,0.0475,97443.0,97434.0,0.10284521]
[1732926124881,0.00566027,97439.0,97437.0,0.102629]
[1732926125102,0.0475,97443.0,97437.0,0.102629]
[1732926125103,0.0475,97443.0,97438.0,0.10284521]
[1732926125322,0.102628,97439.0,97438.0,0.10284521]
[1732926126754,0.102628,97439.0,97438.0,0.10784521]
[1732926127668,0.102628,97439.0,97438.0,0.11184521]
[1732926127921,0.152518,97449.0,97439.0,0.205256]
[1732926128214,0.0002,97449.0,97441.0,0.10284521]
[1732926128416,0.0002,97449.0,97442.0,0.00181625]
[1732926128664,0.0002,97449.0,97448.0,0.102618]
[1732926128908,0.0002,97449.0,97448.0,0.20546321]
[1732926129137,0.0008658,97453.0,97448.0,0.20546321]
[1732926129377,0.1034798,97453.0,97449.0,0.10284521]
[1732926129832,0.0008658,97453.0,97449.0,0.10284521]
[1732926130131,0.1034788,97453.0,97449.0,0.10284521]
[1732926130363,0.0008658,97453.0,97450.0,0.102616]
[1732926130582,0.0008658,97453.0,97450.0,0.20727734]
[1732926131989,0.0008658,97453.0,97450.0,0.21027734]
[1732926132499,0.0008658,97453.0,97450.0,0.34835824]
[1732926132764,0.0008658,97453.0,97450.0,0.35054211]
[1732926133007,0.0002,97469.0,97450.0,0.24792398]
[1732926133264,0.0002,97469.0,97464.0,0.102601]
[1732926133479,0.0002,97469.0,97466.0,0.102599]
[1732926133695,0.0002,97469.0,97467.0,0.10284521]
[1732926134165,0.0002,97469.0,97467.0,0.20544321]
[1732926134390,0.0002,97469.0,97467.0,0.10284521]
[1732926134623,0.00079762,97469.0,97467.0,0.10284521]
[1732926135058,0.00079762,97469.0,97468.0,0.102597]
[1732926135333,0.00079762,97469.0,97468.0,0.10284521]
[1732926135583,0.00079762,97469.0,97468.0,0.20544221]
[1732926135811,0.00079762,97469.0,97468.0,0.10284521]
[1732926136507,0.00079762,97469.0,97468.0,0.11084521]
[1732926136744,0.00079762,97469.0,97468.0,0.11584521]
[1732926137395,0.23215902,97469.0,97468.0,0.11584521]
[1732926138317,0.23796002,97469.0,97468.0,0.11584521]
[1732926138552,0.23796002,97469.0,97468.0,0.013]
[1732926139445,0.23796002,97469.0,97468.0,0.005]
[1732926139669,0.23796002,97469.0,97468.0,0.011]
[1732926140141,0.23796002,97469.0,97468.0,0.006]
[1732926140358,0.23796002,97469.0,97468.0,0.012]
[1732926140841,0.23796002,97469.0,97468.0,0.008]
[1732926141289,0.40791709,97469.0,97468.0,0.008]
[1732926141528,0.102607,97459.0,97458.0,0.03066668]
[1732926141744,0.102611,97455.0,97454.0,0.03066668]
[1732926141968,0.38232948,97455.0,97454.0,0.03066668]
[1732926142197,0.38232948,97455.0,97445.0,0.03066668]
[1732926142198,0.10262,97446.0,97445.0,0.03066668]
[1732926142440,0.102643,97425.0,97424.0,0.10284521]
[1732926142705,0.05642096,97425.0,97424.0,0.10284521]
[1732926142966,0.1083437,97425.0,97424.0,0.10284521]
[1732926143637,0.1083437,97425.0,97424.0,0.11184521]
[1732926143866,0.1083437,97425.0,97424.0,0.11202453]
[1732926144529,0.1083437,97425.0,97424.0,0.11902453]
[1732926149594,0.1083437,97425.0,97424.0,0.12075493]
[1732926150031,0.0057007,97425.0,97424.0,0.12075493]
[1732926150243,0.046,97447.0,97424.0,0.19847166]
[1732926150531,0.0787,97448.0,97437.0,0.03063953]
[1732926150532,0.00181848,97448.0,97437.0,0.03063953]
[1732926150715,0.00181848,97448.0,97431.0,0.10284521]
[1732926150716,0.0010654,97469.0,97447.0,0.13348474]
[1732926150937,0.0010654,97469.0,97458.0,0.03063434]
[1732926150938,0.00181848,97468.0,97458.0,0.03063434]
[1732926151183,0.0010654,97469.0,97449.0,0.205235]
[1732926151184,0.0010654,97469.0,97459.0,0.10284521]
[1732926151672,0.0010654,97469.0,97459.0,0.13347955]
[1732926151673,0.102606,97460.0,97459.0,0.13347955]
[1732926152178,0.10320362,97460.0,97459.0,0.13347955]
[1732926152657,0.10320362,97460.0,97459.0,0.13347862]
[1732926152884,0.10320362,97460.0,97459.0,0.14047862]
[1732926153349,0.1079219,97460.0,97459.0,0.10984521]
[1732926153818,0.1079219,97460.0,97459.0,0.11384521]
[1732926155237,0.1079219,97460.0,97459.0,0.011]
[1732926155238,0.10974038,97460.0,97459.0,0.011]
[1732926155489,0.18844038,97460.0,97459.0,0.011]
[1732926155755,0.40439745,97460.0,97459.0,0.011]
[1732926155984,0.40257897,97460.0,97459.0,0.011]
[1732926156216,0.40257897,97460.0,97459.0,0.007]
[1732926156688,0.00995707,97458.0,97429.0,0.03063508]
[1732926156922,0.00181848,97457.0,97430.0,0.10284521]
[1732926157180,0.102636,97431.0,97430.0,0.13349055]
[1732926157923,0.10759201,97431.0,97430.0,0.13349055]
[1732926158637,0.10759201,97431.0,97430.0,0.14249055]
[1732926158866,0.10759201,97431.0,97430.0,0.11184521]
[1732926159338,0.10759201,97431.0,97430.0,0.14249055]
[1732926159608,0.10759201,97431.0,97430.0,0.11184521]
[1732926159851,0.10759201,97431.0,97430.0,0.11784521]
[1732926163097,0.00495601,97431.0,97430.0,0.11784521]
[1732926163324,0.10759201,97431.0,97430.0,0.11784521]
[1732926163592,0.00495601,97431.0,97430.0,0.11784521]
[1732926164116,0.00495576,97431.0,97430.0,0.11784521]
[1732926164364,0.10759176,97431.0,97430.0,0.11784521]
[1732926164592,0.102636,97431.0,97430.0,0.11784521]
[1732926164827,0.10761061,97431.0,97430.0,0.11784521]
[1732926166011,0.00497461,97431.0,97430.0,0.11784521]
[1732926166245,0.205262,97437.0,97430.0,0.11784521]
[1732926166466,0.00497461,97431.0,97430.0,0.11784521]
[1732926166729,0.15,97456.0,97430.0,0.11784521]
[1732926166730,0.205255,97440.0,97430.0,0.22048221]
[1732926166964,0.10263,97438.0,97431.0,0.102636]
[1732926167232,0.205255,97440.0,97432.0,0.10284521]
[1732926167233,0.00497542,97439.0,97432.0,0.10284521]
[1732926167451,0.00497495,97437.0,97432.0,0.10284521]
[1732926167669,0.02016717,97440.0,97432.0,0.10284521]
[1732926167883,0.102634,97433.0,97432.0,0.10284521]
[1732926168099,0.205265,97435.0,97432.0,0.10284521]
[1732926168100,0.102633,97435.0,97432.0,0.10284521]
[1732926168319,0.00498418,97433.0,97432.0,0.10284521]
[1732926168563,0.102633,97435.0,97432.0,0.10284521]
[1732926168787,0.10761818,97433.0,97432.0,0.10284521]
[1732926169015,0.102634,97433.0,97432.0,0.10884521]
[1732926169227,0.102634,97433.0,97432.0,0.10284521]
[1732926169465,0.10761818,97433.0,97432.0,0.10284521]
[1732926169709,0.10761818,97433.0,97432.0,0.10784521]
[1732926170186,0.10761818,97433.0,97432.0,0.10284521]
[1732926170428,0.00498418,97433.0,97432.0,0.10284521]
[1732926170670,0.102634,97433.0,97432.0,0.11784521]
[1732926170897,0.10761768,97433.0,97432.0,0.11784521]
[1732926172454,0.10943616,97433.0,97432.0,0.11784521]
[1732926173078,0.10943616,97433.0,97432.0,0.015]
[1732926173288,0.11030156,97433.0,97432.0,0.015]
[1732926181981,0.11030156,97433.0,97432.0,0.04571462]
[1732926182450,0.11030156,97433.0,97432.0,0.015]
[1732926190247,0.11030156,97433.0,97432.0,0.0100443]
[1732926192992,0.11030156,97433.0,97432.0,0.04080947]
[1732926193468,0.11030156,97433.0,97432.0,0.04080915]
[1732926193684,0.11030156,97433.0,97432.0,0.15617733]
[1732926193908,0.10848308,97433.0,97432.0,0.09849324]
[1732926194153,0.10848308,97433.0,97432.0,0.06772839]
[1732926201698,0.00584908,97433.0,97432.0,0.3528086]
[1732926201911,0.09206072,97456.0,97433.0,0.0476]
[1732926202122,0.09206072,97465.0,97436.0,0.205262]
[1732926202327,0.09206072,97465.0,97434.0,0.10284521]
[1732926202328,0.10262,97447.0,97437.0,0.102629]
[1732926202550,0.205229,97452.0,97438.0,0.00320922]
[1732926202551,0.102622,97445.0,97438.0,0.00320922]
[1732926202788,0.205216,97459.0,97436.0,0.0009902]
[1732926202789,0.102625,97442.0,97439.0,0.10605443]
[1732926202997,0.00181848,97447.0,97440.0,0.00320922]
[1732926203202,0.00181848,97447.0,97433.0,0.252868]
[1732926203203,0.102621,97446.0,97441.0,0.10605443]
[1732926203407,0.102621,97446.0,97441.0,0.10284521]
[1732926203608,0.00181848,97447.0,97441.0,0.10284521]
[1732926203819,0.102622,97445.0,97441.0,0.10284521]
[1732926204061,0.205222,97456.0,97441.0,0.10284521]
[1732926204275,0.205237,97449.0,97441.0,0.10284521]
[1732926204482,0.102621,97446.0,97441.0,0.10284521]
[1732926204749,0.102621,97446.0,97441.0,0.10784521]
[1732926204957,0.00181848,97448.0,97441.0,0.10784521]
[1732926205174,0.25101062,97460.0,97447.0,0.1324]
[1732926205175,0.00059762,97460.0,97447.0,0.1324]
[1732926205382,0.00059762,97460.0,97448.0,0.10284521]
[1732926205613,0.00059762,97460.0,97451.0,0.102615]
[1732926205823,0.00059762,97460.0,97452.0,0.10284521]
[1732926206034,0.0024161,97460.0,97452.0,0.10284521]
[1732926206889,0.00059762,97460.0,97452.0,0.10684521]
[1732926207347,0.00059762,97460.0,97452.0,0.10284521]
[1732926207562,0.00059762,97460.0,97452.0,0.10884521]
[1732926208722,0.00059762,97460.0,97452.0,0.11184521]
[1732926208950,0.00059762,97460.0,97453.0,0.102613]
[1732926209173,0.00059762,97460.0,97454.0,0.10284521]
[1732926209818,0.10320362,97460.0,97454.0,0.10284521]
[1732926210027,0.00181848,97459.0,97454.0,0.10284521]
[1732926210259,0.102609,97457.0,97454.0,0.10284521]
[1732926210473,0.00181848,97456.0,97454.0,0.10284521]
[1732926210703,0.102611,97455.0,97454.0,0.005]
[1732926211170,0.30322948,97455.0,97454.0,0.01]
[1732926211401,0.30322948,97455.0,97424.0,0.0017304]
[1732926211402,0.0819,97453.0,97444.0,0.03066045]
[1732926211620,0.102623,97444.0,97443.0,0.03066045]
[1732926211840,0.0819,97453.0,97441.0,0.03066045]
[1732926211841,0.205237,97448.0,97441.0,0.03066045]
[1732926212043,0.0819,97453.0,97439.0,0.03066045]
[1732926212044,0.205241,97446.0,97439.0,0.03066045]
[1732926212272,0.102627,97440.0,97439.0,0.03066045]
[1732926213016,0.102628,97439.0,97438.0,0.03066045]
[1732926213896,0.00181848,97443.0,97436.0,0.03066045]
[1732926214137,0.10263,97437.0,97436.0,0.03066045]
[1732926215013,0.102631,97436.0,97435.0,0.03066045]
[1732926215235,0.102633,97434.0,97433.0,0.10284521]
[1732926215441,0.102633,97434.0,97426.0,0.0009964]
[1732926215442,0.102634,97433.0,97426.0,0.0009964]
[1732926215690,0.102634,97433.0,97424.0,0.0017304]
[1732926215691,0.10445248,97433.0,97424.0,0.0017304]
[1732926216621,0.10445248,97433.0,97431.0,0.03067452]
[1732926216834,0.10445248,97433.0,97424.0,0.0017304]
[1732926216835,0.10545248,97433.0,97432.0,0.0127318]
[1732926238474,0.10545248,97433.0,97432.0,0.04341162]
[1732926238927,0.103634,97433.0,97432.0,0.14625683]
[1732926239152,0.103634,97433.0,97432.0,0.19647701]
[1732926239876,0.001,97433.0,97432.0,0.19647701]
[1732926240313,0.001,97433.0,97432.0,0.29911201]
[1732926240540,0.00146352,97460.0,97433.0,0.149934]
[1732926240541,0.102621,97445.0,97433.0,0.149934]
[1732926240750,0.00181848,97444.0,97434.0,0.10284521]
[1732926240955,0.102625,97442.0,97434.0,0.10284521]
[1732926241373,0.102625,97442.0,97434.0,0.20547721]
[1732926241580,0.00181848,97444.0,97434.0,0.20547721]
[1732926241581,0.102624,97443.0,97434.0,0.20547821]
[1732926241723,0.102625,97442.0,97434.0,0.20547821]
[1732926241962,0.00181848,97444.0,97434.0,0.10284521]
[1732926242187,0.102625,97442.0,97434.0,0.20547721]
[1732926242409,0.07973001,97450.0,97434.0,0.10284521]
[1732926242630,0.102623,97444.0,97435.0,0.102632]
[1732926242824,0.07973001,97450.0,97435.0,0.102632]
[1732926242825,0.0008657,97453.0,97436.0,0.10284521]
[1732926243027,0.0008657,97453.0,97434.0,0.005]
[1732926243028,0.0008657,97453.0,97452.0,0.230814]
[1732926243272,0.0008657,97453.0,97452.0,0.23104521]
[1732926244489,0.0008657,97453.0,97452.0,0.23204521]
[1732926244926,0.0008657,97453.0,97452.0,0.33365921]
[1732926245133,0.0008657,97453.0,97452.0,0.35865921]
[1732926245409,0.0008657,97453.0,97452.0,0.36265921]
[1732926246258,0.0008657,97453.0,97452.0,0.36065921]
[1732926246460,0.0008657,97453.0,97452.0,0.35665921]
[1732926246690,0.0008657,97453.0,97452.0,0.36565921]
[1732926246858,0.0008657,97453.0,97452.0,0.37165921]
[1732926247092,0.0008657,97453.0,97452.0,0.36265921]
[1732926247300,0.0008657,97453.0,97452.0,0.36565921]
[1732926247546,0.0008657,97453.0,97452.0,0.37265921]
[1732926252432,0.0008657,97453.0,97452.0,0.38362681]
[1732926253364,0.0008657,97453.0,97452.0,0.33632681]
[1732926253852,0.0008657,97453.0,97452.0,0.32932681]
[1732926254070,0.0008657,97453.0,97452.0,0.33632681]
[1732926254299,0.0008657,97453.0,97452.0,0.32732681]
[1732926254738,0.0008657,97453.0,97452.0,0.32932681]
[1732926254973,0.0008657,97453.0,97452.0,0.41732446]
[1732926257406,0.0008657,97453.0,97452.0,0.42532446]
[1732926259813,0.0008657,97453.0,97452.0,0.42532297]
[1732926262353,0.00146352,97460.0,97453.0,0.023]
[1732926262605,0.00146352,97460.0,97452.0,0.32270897]
[1732926262606,0.00146352,97460.0,97459.0,0.22845221]
[1732926262864,0.00146352,97460.0,97459.0,0.31644837]
[1732926264227,0.00146352,97460.0,97459.0,0.32544837]
[1732926265656,0.00146352,97460.0,97459.0,0.33144837]
[1732926266835,0.00146352,97460.0,97459.0,0.20584137]
[1732926267271,0.00146352,97460.0,97459.0,0.22045221]
[1732926267484,0.00146352,97460.0,97459.0,0.21445221]
[1732926267931,0.00146352,97460.0,97459.0,0.22045221]
[1732926268352,0.00146352,97460.0,97459.0,0.21445221]
[1732926268776,0.00146352,97460.0,97459.0,0.22045221]
[1732926268997,0.00146352,97460.0,97459.0,0.29973127]
[1732926269223,0.00146352,97460.0,97459.0,0.30873127]
[1732926269676,0.00146352,97460.0,97459.0,0.29973127]
[1732926269908,0.00146352,97460.0,97459.0,0.30773127]
[1732926270205,0.00146352,97460.0,97459.0,0.30173127]
[1732926270444,0.05978564,97471.0,97459.0,0.19912427]
[1732926270726,0.102606,97460.0,97459.0,0.19112427]
[1732926270935,0.102606,97460.0,97459.0,0.11184521]
[1732926270936,0.149506,97460.0,97459.0,0.11184521]
[1732926271174,0.149506,97460.0,97459.0,0.18600986]
[1732926271611,0.149506,97460.0,97459.0,0.18100986]
[1732926271830,0.149506,97460.0,97459.0,0.18400986]
[1732926272273,0.149506,97460.0,97459.0,0.17500986]
[1732926272487,0.149506,97460.0,97459.0,0.18100986]
[1732926273885,0.149506,97460.0,97459.0,0.17800986]
[1732926274112,0.149506,97460.0,97459.0,0.07916465]
[1732926274341,0.23062448,97460.0,97459.0,0.07916465]
[1732926274568,0.228806,97460.0,97459.0,0.07916465]
[1732926275014,0.228806,97460.0,97459.0,0.07516465]
[1732926275479,0.228806,97460.0,97459.0,0.07916465]
[1732926275690,0.228806,97460.0,97459.0,0.07920707]
[1732926276145,0.228806,97460.0,97459.0,0.07320707]
[1732926277025,0.229806,97460.0,97459.0,0.06920707]
[1732926277274,0.228806,97460.0,97459.0,0.07020707]
[1732926277697,0.229806,97460.0,97459.0,0.06920707]
[1732926280461,0.102626,97441.0,97440.0,0.0009929]
[1732926280692,0.102626,97441.0,97440.0,0.10383811]
[1732926280877,0.102626,97441.0,97440.0,0.1719093]
[1732926281805,0.102626,97441.0,97440.0,0.1759093]
[1732926282299,0.07964046,97450.0,97440.0,0.1759093]
[1732926282300,0.0479,97460.0,97441.0,0.205252]
[1732926282540,0.102608,97458.0,97444.0,0.102623]
[1732926282774,0.102614,97452.0,97446.0,0.10262]
[1732926283003,0.00181848,97459.0,97447.0,0.1719093]
[1732926283229,0.205203,97464.0,97448.0,0.06906409]
[1732926283440,0.07964046,97460.0,97449.0,0.1719093]
[1732926283664,0.00181848,97459.0,97449.0,0.1719093]
[1732926283861,0.001,97458.0,97450.0,0.06906409]
[1732926284125,0.102615,97452.0,97451.0,0.1719093]
[1732926286238,0.102615,97452.0,97451.0,0.1769093]
[1732926286991,0.230815,97452.0,97451.0,0.07806409]